Cogmind - Beta 11.1 @@@ ROGUE MODE // 2022.08.27 @ 14:22:00 Player: ILikeVoltron Result: Self-destructed Performance ------------- Evolutions (1) 500 Regions Visited (2) 400 Robots Destroyed (41) 205 Value Destroyed (1019) 1019 Prototype IDs (2) 40 Alien Tech Used (0) 0 Bonus (45) 45 TOTAL SCORE: 2209 Bonus ------- High Alert Combat Kills 45 Cogmind --------- Core Integrity 1/400 Matter 111/300 Energy 19/100 System Corruption 0% Temperature Warm (195) Movement Core (250) Ox4 Location -9/Materials Parts ------- > --- POWER (1) -------- (None) > --- PROPULSION (3) --- (None) > --- UTILITY (3) ------ Disposable Heat Sink Medium Storage Unit Improved Targeting Computer > --- WEAPON (2) ------- Precision Beam Rifle Precision Beam Rifle > --- INVENTORY (10) --- Aluminum Leg Cooling System Large Matter Pod (150) Terrain Scanner Transport Network Coupler Ion Cannon Improved Light Cannon Rocket Launcher Datajack Peak State ------------ > --- POWER ------------ Ion Engine > --- PROPULSION ------- Aluminum Leg Aluminum Leg Improved Aluminum Leg > --- UTILITY ---------- Disposable Heat Sink Medium Storage Unit Improved Targeting Computer > --- WEAPON ----------- Spread Laser Rocket Launcher > --- INVENTORY -------- Aluminum Leg Cooling System Large Matter Pod Terrain Scanner Transport Network Coupler Ion Cannon Improved Light Cannon Rocket Launcher Datajack Hammer [Rating: 15] Favorites ----------- Power Ion Engine Engine Ion Engine Propulsion Aluminum Leg Leg Aluminum Leg Utility Medium Storage Unit Device Improved Heat Sink Storage Medium Storage Unit Processor Improved Targeting Computer Protection Light Armor Plating Weapon Assault Rifle Energy Gun Spread Laser Energy Cannon Particle Cannon Ballistic Gun Assault Rifle Launcher Rocket Launcher Impact Weapon Hammer Slashing Weapon Mining Claw Special Melee Weapon Datajack Build | -11 -10 -9 ------- Run | Scr Mat Mat Slots Evolved 2 | . . 2 Power . | . . . Propulsion 1 | . . 1 Utility 1 | . . 1 Weapon . | . . . Parts Attached 65 | . 22 43 Power 4 | . 1 3 Engine 4 | . 1 3 Core . | . . . Reactor . | . . . Propulsion 10 | . 3 7 Treads . | . . . Leg 10 | . 3 7 Wheel . | . . . Hover . | . . . Flight . | . . . Utility 21 | . 5 16 Device 7 | . 1 6 Storage 6 | . 3 3 Processor 1 | . . 1 Hackware . | . . . Protection 7 | . 1 6 Artifact . | . . . Weapon 30 | . 13 17 Energy Gun 6 | . 3 3 Energy Cannon 3 | . . 3 Ballistic Gun 6 | . 3 3 Ballistic Cannon . | . . . Launcher 3 | . 1 2 Special Weapon . | . . . Impact Weapon 6 | . 3 3 Slashing Weapon 3 | . 1 2 Piercing Weapon . | . . . Special Melee Weapon 3 | . 2 1 Unidentified Prototypes 2 | . . 2 Parts Lost 12 | . 1 11 Power 2 | . . 2 Propulsion 3 | . . 3 Utility 1 | . . 1 Weapon 6 | . 1 5 Highest Loss Streak 7 | . 1 7 To Critical Strikes . | . . . Average Slot Usage (%) 97 | . 97 97 Engine 11 | . 14 10 Leg 30 | . 28 31 Device 6 | . 2 9 Storage 18 | . 23 14 Protection 4 | . . 6 Energy Gun 6 | . 7 6 Energy Cannon 1 | . . 2 Ballistic Gun 8 | . 14 3 Impact Weapon 3 | . 4 3 Slashing Weapon 2 | . . 3 Special Melee Weapon 1 | . 1 1 Naked Turns . | . . . Heaviest Build 26 | 13 22 26 Greatest Support 36 | 20 20 36 Greatest Overweight (x) 4 | . 1 4 Average Overweight (x) . | . . . Largest Inventory Capacity 10 | 8 10 10 Average Capacity 9 | 8 9 10 Most Carried 10 | 6 10 10 Average Carried 9 | 6 9 9 Final Capacity 10 | 8 10 10 Final Carried 9 | 6 9 9 Class Distribution -------------------- 56% | Mutant 43% | Scavenger-Mutant Dominant Class ---------------- Mutant | -10/Materials Scavenger-Mutant | -9/Materials Resources | -11 -10 -9 ----------- Run | Scr Mat Mat Matter Collected 1245 | 165 450 630 Remotely . | . . . Salvage Created 1096 | . 270 826 Parts 60 | . 16 44 Haulers Intercepted 3 | . 1 2 Recyclers Shooed 2 | . . 2 Parts Field Recycled . | . . . Retrieved Matter . | . . . Parts Self-Destructed . | . . . Prevented . | . . . Kills | -11 -10 -9 ------- Run | Scr Mat Mat Combat Hostiles Destroyed 32 | . 8 24 Guns 16 | . 5 11 Cannons 2 | . . 2 AOE 13 | . 3 10 Classes Destroyed 9 | . 4 5 Worker 1 | . . 1 Builder 3 | . . 3 Hauler 3 | . 1 2 Recycler 1 | . . 1 Watcher 1 | . 1 . Swarmer 9 | . 3 6 Grunt 18 | . 5 13 Duelist 1 | . . 1 Sentry 4 | . . 4 Best Kill Streak 9 | . 4 9 Combat Bots Only 8 | . 3 8 Max Kills in Single Turn 4 | . 1 4 Gunslinging . | . . . Exploded 3 | . 1 3 Melee . | . . . Uniques/NPCs Destroyed . | . . . Combat | -11 -10 -9 -------- Run | Scr Mat Mat Damage Taken 2422 | . 670 1752 Core 522 | . 123 399 Absorbed by Shields . | . . . Core Remaining (%) 75 | 100 50 . Volleys Fired 118 | . 44 74 Largest 2 | . 2 2 Hottest 122 | . 60 122 Shots Fired 157 | . 53 104 Gun 119 | . 47 72 Cannon 17 | . . 17 Launcher 21 | . 6 15 Special . | . . . Kinetic 53 | . 33 20 Thermal 83 | . 14 69 Explosive 21 | . 6 15 Electromagnetic . | . . . Robot Hit Streak 12 | . 8 12 Robot Miss Streak 5 | . 3 5 Penetration Max . | . . . Secondary Targets 1 | . . 1 Max Gunslinging Chain 1 | . . 1 Shots Hit Robots 128 | . 37 91 Core Hits 90 | . 20 70 Critical Kills . | . . . Critical Parts Destroyed 2 | . 1 1 Critical Strikes 2 | . 1 1 Destroy 1 | . 1 . Smash 1 | . . 1 Melee Attacks 64 | . 12 52 Impact 32 | . 7 25 Slashing 29 | . 5 24 Piercing . | . . . Sneak Attacks 6 | . . 6 Combat Hostiles . | . . . Follow-up Attacks . | . . . Damage Inflicted 2776 | . 642 2134 Guns 1168 | . 420 748 Cannons 263 | . . 263 Explosions 878 | . 173 705 Melee 467 | . 49 418 Ramming . | . . . Kinetic 420 | . 321 99 Thermal 1011 | . 99 912 Explosive 878 | . 173 705 Electromagnetic . | . . . Impact 347 | . . 347 Slashing 120 | . 49 71 Piercing . | . . . Highest Corruption 2 | . 2 . Average Corruption 2 | . 2 . Corruption Purged . | . . . Corruption Blocked . | . . . Effects 8 | . 8 . Message Errors 3 | . 3 . Matter Fused 5 | . 5 . Overload Shots . | . . . Overflow Damage 97 | . 7 90 Projectiles 1 | . . 1 Explosions 31 | . 7 24 Melee 65 | . . 65 Knockbacks . | . . . Impact . | . . . Kinetic . | . . . Secondary . | . . . Self-Inflicted Damage 65 | . . 65 Shots 2 | . . 2 Rammed . | . . . Targets Rammed . | . . . Kicked . | . . . Crushed . | . . . Highest Temperature 195 | . 36 195 Average Temperature 41 | . 18 44 Received Heat Transfer 936 | . 276 660 Siege Activations . | . . . Robots Corrupted . | . . . Combat Hostiles . | . . . Parts Fried 5 | . . 5 Impact Corruptions 4 | . . 4 Robots Melted . | . . . Combat Hostiles . | . . . Parts Melted 1 | . . 1 Heat Transferred 1676 | . 225 1451 Parts Sabotaged . | . . . Parts Stolen . | . . . Parts Stripped . | . . . Power Chain Reactions . | . . . Missiles Intercepted . | . . . Alert | -11 -10 -9 ------- Run | Scr Mat Mat Peak Influence 719 | . 207 719 Initial 52 | . . 52 Average 122 | . 52 176 Maximum Alert Level 3 | . 1 3 Low Security (%) 78 | 100 98 63 Level 1 16 | . 1 28 Level 2 4 | . . 8 Level 3 . | . . . Level 4 . | . . . Level 5 . | . . . High Security . | . . . Max Security . | . . . Squads Dispatched 6 | . 2 4 Investigation 1 | . . 1 Extermination . | . . . Reinforcement 5 | . 2 3 Assault . | . . . Garrison . | . . . Intercept . | . . . Searches Triggered . | . . . Construction Impeded . | . . . Haulers Reinforced . | . . . Active Scanning Responses . | . . . Cargo Convoy Interrupts . | . . . Stealth | -11 -10 -9 --------- Run | Scr Mat Mat Distress Signals 4 | . 2 2 Communications Jammed . | . . . Distress Signals . | . . . Times Spotted 52 | . 17 35 Peak Tracking Total 6 | . 4 6 Tactical Retreats 7 | . 6 1 Traps | -11 -10 -9 ------- Run | Scr Mat Mat Traps Triggered 1 | . 1 . Indirectly . | . . . Trap Hack Attempts . | . . . Triggered . | . . . Disarmed . | . . . Reprogrammed . | . . . Reused . | . . . Traps Extracted . | . . . Installed . | . . . Triggered . | . . . Machines | -11 -10 -9 ---------- Run | Scr Mat Mat Machines Disabled 2 | . . 2 Max in Single Turn 1 | . . 1 Machines Sabotaged . | . . . Garrisons Compromised . | . . . Overloaded Fab Kills . | . . . Hacking | -11 -10 -9 --------- Run | Scr Mat Mat Machines Accessed 12 | . 7 5 Terminals 10 | . 6 4 Fabricators . | . . . Repair Stations . | . . . Recycling Units 1 | . 1 . Scanalyzers 1 | . . 1 Garrison Access . | . . . Total Hacks 31 | . 14 17 Successful 21 | . 9 12 Failed 10 | . 5 5 Catastrophic 1 | . 1 . Database Lockouts . | . . . Manual 9 | . 2 7 Terminals 26 | . 13 13 Fabricators . | . . . Repair Stations . | . . . Recycling Units 1 | . 1 . Scanalyzers 4 | . . 4 Garrison Access . | . . . Terminal Hacks 10 | . 7 3 Record 2 | . 1 1 Terminal Index 1 | . 1 . Alert Level 1 | . . 1 Locate Traps 3 | . 2 1 Reinforcement Status 1 | . 1 . Zone Layout 2 | . 2 . Fabricator Hacks . | . . . Repair Station Hacks . | . . . Recycling Unit Hacks 1 | . 1 . Report Inventory 1 | . 1 . Scanalyzer 4 | . . 4 Insert Component 2 | . . 2 Analyze 2 | . . 2 Garrison Access Hacks . | . . . Unauthorized Hacks 6 | . 1 5 Terminals 6 | . 1 5 Track 2 | . . 2 Assimilate 1 | . 1 . Botnet 3 | . . 3 Fabricators . | . . . Repair Stations . | . . . Recycling Units . | . . . Scanalyzers . | . . . Garrison Access . | . . . Data Cores Recovered . | . . . Used . | . . . Hacking Detections 8 | . 4 4 Full Trace Events 2 | . 1 1 Feedback Events . | . . . Feedback Blocked . | . . . Robot Schematics Acquired . | . . . Robots Built . | . . . Authchips . | . . . Time . | . . . Total Robot Build Rating . | . . . Part Schematics Acquired 2 | . . 2 Parts Built . | . . . Authchips . | . . . Time . | . . . Total Part Build Rating . | . . . Parts Repaired . | . . . Time . | . . . Parts Recycled . | . . . Recycled Matter . | . . . Retrieved Matter . | . . . Retrieved Components . | . . . Parts Scanalyzed 2 | . . 2 Part Schematics Acquired 2 | . . 2 Parts Damaged . | . . . Bothacking | -11 -10 -9 ------------ Run | Scr Mat Mat Used RIF Installer . | . . . Robots Hacked 2 | . . 2 Non-combat 2 | . . 2 Combat . | . . . Robot Hacks Applied 3 | . . 3 parse_system 2 | . . 2 no_distress 1 | . . 1 Relay Couplers Released . | . . . Fabnet Peak Effective % . | . . . Robots Rewired . | . . . Allies Hacked . | . . . Hacks Repelled . | . . . Allies | -11 -10 -9 -------- Run | Scr Mat Mat Total Allies 1 | . 1 . Largest Group 1 | . 1 . Highest-Rated Group 10 | . 10 . Highest-Rated Ally 10 | . 10 . Total Orders 1 | . 1 . ROAM 1 | . 1 . Ally Attacks . | . . . Total Damage . | . . . Kills . | . . . Allies Corrupted . | . . . Allies Melted . | . . . Intel | -11 -10 -9 ------- Run | Scr Mat Mat Robot Analysis Total . | . . . Derelict Logs Recovered . | . . . Drone Launches . | . . . Drone Recoveries . | . . . Exploration | -11 -10 -9 ------------- Run | Scr Mat Mat Turns Passed 2147 | 16 923 1208 Spaces Moved 1012 | 1 429 582 Core 8 | . . 8 Treads . | . . . Legs 1004 | 1 429 574 Wheels . | . . . Hover . | . . . Flight . | . . . Fastest Speed 120 | 120 120 120 Average Speed 135 | 120 142 130 Slowest Speed 250 | 120 190 250 Overloaded Moves . | . . . Propulsion Burnouts . | . . . Robots Hopped . | . . . Cave-ins Triggered . | . . . Exploration Rate (%) 41 | 2 66 55 Regions Visited 2 Branch Regions . Pre-discovered Areas . | . . . Known Exits Taken . | . . . Unknown Exits Taken 2 | 1 1 . Scrap Searched . | . . . Spaces Dug 19 | . 5 14 Terrain Destroyed 108 | . 5 103 Melee 19 | . 5 14 Projectile . | . . . AOE 89 | . . 89 Terrain Rammed . | . . . Walls Destroyed . | . . . Machines Disabled . | . . . Actions | -11 -10 -9 --------- Run | Scr Mat Mat Total 1514 | 15 665 834 Wait 187 | 15 130 42 Move 1010 | . 428 582 Hop . | . . . Pick Up 26 | . 12 14 Fast Attach 17 | . 4 13 Attach 6 | . 1 5 Detach 4 | . 2 2 Swap 42 | . 17 25 Drop 40 | . 15 25 Fire 118 | . 44 74 Melee 64 | . 12 52 Ram . | . . . Kick . | . . . Crush . | . . . Escape Stasis . | . . . Rewire . | . . . Trap . | . . . Miscellaneous . | . . . Route ------- -11/Scrapyard -10/Materials (discovered 4 exits: *Mat x2 / [*Min x2]) -9/Materials (discovered 3 exits: [*Mat] / [*Min] / [*Sto]) History --------- Turn | Location | Event 15 | -11/Scrapyard | Discovered new exit (range 2) 17 | -11/Scrapyard | Entered Materials 105 | -10/Materials | Discovered new exit (range 14) 240 | -10/Materials | Discovered new exit (range 5) 258 | -10/Materials | Discovered new exit (range 16) 305 | -10/Materials | Build established: Mutant 927 | -10/Materials | Discovered new exit (range 11) 940 | -10/Materials | Entered another Materials area 940 | -9/Materials | Evolved 2 slots: Propulsion x1, Utility x1 1055 | -9/Materials | Discovered new exit (range 13) 1078 | -9/Materials | Build established: Scavenger-Mutant 1686 | -9/Materials | Discovered new exit (range 3) 1787 | -9/Materials | Discovered new exit (range 5) 1988 | -9/Materials | Build established: Mutant 2076 | -9/Materials | Destroyed 8 combat bots 2120 | -9/Materials | Core integrity fell below 50% 2131 | -9/Materials | Core integrity fell below 20% 2148 | -9/Materials | Self-destructed Last Messages --------------- 02114_ U-05 Engineer lays Concrete. 02121_ Hammer destroyed. 02125_ The unstable cave ceiling collapses. 02126_ Acquired Prototype Energy Gun. 02126_ Identified Prc. Beam Rifle. 02133_ G-34 Mercenary destroyed. 02134_ U-05 Engineer lays Concrete. 02134_ Acquired Prc. Beam Rifle. 02135_ U-05 Engineer lays Concrete. 02139_ U-05 Engineer builds a Wall. 02143_ U-05 Engineer lays Concrete. 02143_ R-06 Scavenger collects Aluminum Leg. 02144_ Y-45 Defender heat spikes uncontrollably. 02144_ U-05 Engineer lays Concrete. 02145_ Y-45 Defender heat spikes uncontrollably. 02145_ The unstable cave ceiling collapses. 02145_ Y-45 Defender destroyed. 02145_ Switching to secondary target: Y-45 Defender. 02147_ The unstable cave ceiling collapses. 02147_ R-06 Scavenger collects Sml. Laser. Map ----- +----------------------------------------------------+ | ???????????????????????????????? | | ???????????????????????????????? | | ???????????????????????????????? | | ???????????????????????????????? | | ???????????????????????????????? | | ???????????????????????????????? | | ???????????????????????????????? | | ???????????????????????????????? | | ???????????????????????????????? | | ???????????????????????????????? | | ???????????????????????????????? | | ???????? ????????+????????????? | | ???????# ???????? #???????????? | | ???????# ???????# #???????????? | | ????? ## ######## #???????????? | | ????? # ** #???? ???? | | ??????+ ** #???? ????? | | ??????# * #??? #????? | | ??????# #### #????? | | ??????# " ?????? | | ??????# ??????? | | ??????# ????????? | | ???#### #?????????? | | #### # = #?????????? | | ######????? | | # @#????? | | # Y [[#????? | | ?#### % # # % ! #??? | | ??## ### # g ! #??? | | ??# ## r% // ##??? | | ??# ##u // #??? | | ??## # ##??? | | ???# # ### ########???? | | #####% # % ??????????? | | # # # % """ ?????????? | | # ## ## [ """ #????????? | | = ### # """ #????????? | | % #? [ #????????? | | ""## ??#????????? | | T"## ###???????????? | | ! ""### #?????????????? | | #?? ??????????????? | | #?????????????????????? | | #?????????????????????? | | #?????????????????????? | | "" #?????????????????????? | | """ #?????????????????????? | | """"" #???? ????????????????? | | """"" #??#??????????????????? | | """ #?????????????????????? | +----------------------------------------------------+ Best States ------------- Heat Dissipation 50 Coolant Potential 50 Energy Generation 10 Energy Capacity 450 Matter Stores 390 Matter Capacity 400 Sight Range 16 Terrain Scan Range 14 Terrain Scan Density 10 Additional Mass Support 6 Armor Coverage 225 Evasion (%) 55 Targeting Accuracy 6 Item Schematics ----------------- Transport Network Coupler | -9/Materials | Scanalyzed Rocket Launcher | -9/Materials | Scanalyzed Robot Schematics ------------------ None Fabricated ------------ Nothing Alien Tech Used ----------------- None Achievements -------------- None Challenges ------------ None Game ------ Seed WeaponTachyonProcessor Manual? 0 Play Time 00:44:01 Cumulative 65.0 hours Start 2022.08.27 @ 13:40:58 End 2022.08.27 @ 14:22:00 Sessions 1 Manual Loads 0 Difficulty Rogue Special Mode None Game No. 87 Rogue 83 Adventurer 0 Explorer 4 Win Type - Total 0 Types 0/0/0/0/0/0/0/0/0 Lore% 19 Gallery% 35 Achievement% 28 Wizard Run 0 Options --------- ASCII 0 Keyboard 1 Movement Arrows Keybinds 0 Fullscreen 2 Font 24/Crisp Map View 113x50 Tactical HUD 1 Map Filters NONE Filters NONE Steam 1 RUN: 9e8ce170-e08b-416e-8889-fb762aa8a6d6